[Event "LTU-ch Men 2019"]
[Site "Vilnius"]
[Date "2019.03.19"]
[Round "7.8"]
[White "Zaksaite, Salomeja"]
[Black "Maziukas, Kasparas"]
[Result "1-0"]
[ECO "C16"]
[WhiteElo "2260"]
[BlackElo "1931"]
[Annotator "NA"]
[PlyCount "57"]
[EventDate "2019.??.??"]
[EventCountry "LTU"]
[SourceTitle "playchess.com"]
[Source "ChessBase"]
[SourceQuality "1"]
[TimeControl "5400+30"]

1. e4 {[%emt 0:00:00]} e6 {[%emt 0:00:00]} 2. d4 {[%emt 0:00:00]} d5 {[%emt 0:00:00]} 3. Nc3 {[%emt 0:00:00]} Bb4 {[%emt 0:00:00]} 4. e5 {[%emt 0:00:00]} Ne7 {[%emt 0:00:02]} 5. Bd2 {[%emt 0:01:10]} b6 {[%emt 0:01:14]} 6. Qg4 {[%emt 0:01:56]} O-O {[%emt 0:02:11]} 7. Nf3 {[%emt 0:01:10]} Ba6 {[%emt 0:01:58]} 8. Bxa6 {[%emt 0:00:27]} Nxa6 {[%emt 0:00:04]} 9. h4 {[%emt 0:00:06]} Nf5 {[%emt 0:05:24]} 10. h5 {[%emt 0:00:37]} Be7 {[%emt 0:14:36]} 11. h6 {[%emt 0:05:53]} g6 {[%emt 0:00:05]} 12. Ne2 {[%emt 0:02:43]} Nb4 {[%emt 0:00:58]} 13. Bxb4 {[%emt 0:00:38]} Bxb4+ {[%emt 0:00:06]} 14. c3 {[%emt 0:00:02]} Be7 {[%emt 0:00:09]} 15. Qh3 {[%emt 0:06:43]} g5 {[%emt 0:02:25]} 16. g4 {[%emt 0:03:32]} Nh4 {[%emt 0:00:03]} 17. Nxh4 {[%emt 0:00:13]} gxh4 {[%emt 0:00:04]} 18. f4 {[%emt 0:00:10]} f5 {[%emt 0:03:46]} 19. exf6 Rxf6 {[%emt 0:00:12]} 20. g5 {[%emt 0:01:22]} Rf5 {[%emt 0:00:13]} 21. Qxh4 {[%emt 0:00:09]} Bd6 {[%emt 0:02:02]} 22. O-O {[%emt 0:01:27]} c5 {[%emt 0:13:27]} 23. Ng3 {[%emt 0:02:10]} Rf7 {[%emt 0:00:12]} 24. Qg4 {[%emt 0:00:08]} Qf8 {[%emt 0:11:36]} 25. Qxe6 {[%emt 0:05:18]} Re8 {[%emt 0:00:16]} 26. Qxd5 {[%emt 0:00:06]} Re3 {[%emt 0:00:19]} 27. Nf5 {[%emt 0:00:46]} Qe8 {[%emt 0:01:26]} 28. Nxd6 {[%emt 0:01:34]} Rg3+ {[%emt 0:00:04]} 29. Kh2 {[%emt 0:00:14]} 1-0

[Event "LTU-ch Men 2019"]
[Site "Vilnius"]
[Date "2019.03.19"]
[Round "7.9"]
[White "Zilakauskis, Steponas"]
[Black "Juknis, Paulius"]
[Result "0-1"]
[ECO "D02"]
[WhiteElo "1679"]
[BlackElo "2219"]
[Annotator "NA"]
[PlyCount "102"]
[EventDate "2019.??.??"]
[EventCountry "LTU"]
[SourceTitle "playchess.com"]
[Source "ChessBase"]
[SourceQuality "1"]
[TimeControl "5400+30"]

1. d4 {[%emt 0:00:00]} d5 {[%emt 0:00:00]} 2. Nf3 {[%emt 0:00:00]} Nc6 {[%emt 0:00:11]} 3. Bf4 {[%emt 0:00:26]} Bg4 {[%emt 0:00:09]} 4. e3 {[%emt 0:01:58]} e6 {[%emt 0:00:12]} 5. Nbd2 {[%emt 0:00:59]} Bd6 {[%emt 0:00:13]} 6. Bg3 {[%emt 0:00:45]} Nf6 {[%emt 0:02:23] D02: 1 d4 d5 2 Nf3 sidelines, including 2...Nf6 3 g3 and 2...Nf6 3 Bf4} 7. c4 {[%emt 0:06:36]} O-O {[%emt 0:08:43]} 8. cxd5 $146 {[%emt 0:06:13]} ({Predecessor:} 8. Be2 Ne4 9. O-O Nxd2 10. Qxd2 dxc4 11. Rfc1 Rb8 12. Rxc4 Bxg3 13. hxg3 Bxf3 14. Bxf3 {½-½ (25) Dydyshko,V (2480)-Manninen,M (2380) Pula 1997}) 8... exd5 {[%emt 0:01:33]} 9. Be2 {[%emt 0:04:23]} Ne7 {[%emt 0:06:47]} 10. Ne5 {[%emt 0:04:20]} Bxe2 {[%emt 0:01:30]} 11. Qxe2 {[%emt 0:00:02]} c6 {[%emt 0:04:32]} 12. O-O {[%emt 0:02:38]} Nf5 {[%emt 0:02:51]} 13. Bf4 {[%emt 0:08:25]} Nd7 {[%emt 0:04:36]} 14. Qg4 {[%emt 0:07:29]} Bxe5 {[%emt 0:02:59]} 15. dxe5 {[%emt 0:00:23]} Ne7 {[%emt 0:00:59]} 16. Rad1 {[%emt 0:11:49]} Ng6 {[%emt 0:03:05]} 17. Nf3 {[%emt 0:06:14]} Qe8 {[%emt 0:08:49]} 18. Qh5 {[%emt 0:04:18]} f6 {[%emt 0:04:03]} 19. e6 {[%emt 0:04:47]} Qxe6 {[%emt 0:04:11]} 20. Nd4 {[%emt 0:00:49]} Qf7 {[%emt 0:01:21]} 21. Bg3 {[%emt 0:03:19]} Ne7 {[%emt 0:02:49]} 22. Qh3 {[%emt 0:02:30]} f5 {[%emt 0:01:42]} 23. Bd6 {[%emt 0:01:40]} Rae8 {[%emt 0:01:11]} 24. f3 {[%emt 0:03:40]} Qf6 {[%emt 0:03:53]} 25. Ba3 {[%emt 0:01:08]} c5 {[%emt 0:03:21]} 26. Nb5 {[%emt 0:01:32]} Qc6 {[%emt 0:00:23]} 27. Nc3 {[%emt 0:00:56]} Ne5 {[%emt 0:03:20]} 28. b3 {[%emt 0:02:34]} b5 {[%emt 0:05:09]} 29. Bb2 {[%emt 0:05:40]} b4 {[%emt 0:01:22]} 30. Ne2 {[%emt 0:01:55]} N7g6 {[%emt 0:00:30]} 31. Qg3 {[%emt 0:01:40]} c4 {[%emt 0:04:02]} 32. Bd4 {[%emt 0:00:17]} Nd3 {[%emt 0:03:43]} 33. Nf4 {[%emt 0:03:32]} Ndxf4 {[%emt 0:01:35]} 34. exf4 {[%emt 0:00:08]} Qc7 {[%emt 0:00:15]} 35. Rfe1 {[%emt 0:02:08]} Qxf4 {[%emt 0:03:12]} 36. Bc5 {[%emt 0:00:46]} Qxg3 {[%emt 0:01:30]} 37. hxg3 {[%emt 0:00:01]} Rxe1+ {[%emt 0:00:11]} 38. Rxe1 $19 {[%emt 0:00:06]} Rc8 {[%emt 0:01:54]} 39. Bxb4 {[%emt 0:02:03]} c3 {[%emt 0:00:45]} 40. Bxc3 {[%emt 0:00:13]} Rxc3 {[%emt 0:00:06]} 41. Rd1 {[%emt 0:00:07]} Ne7 {[%emt 0:00:20]} 42. Rd2 {[%emt 0:00:11]} Kf7 {[%emt 0:00:10]} 43. Kf2 {[%emt 0:00:38]} Ke6 {[%emt 0:00:06]} 44. b4 {[%emt 0:00:24]} Kd6 {[%emt 0:00:39]} 45. Ke2 {[%emt 0:00:28]} Nc6 {[%emt 0:00:14]} 46. b5 {[%emt 0:00:07]} Nb4 {[%emt 0:00:34]} 47. a4 {[%emt 0:00:18]} Rc2 {[%emt 0:00:16]} 48. Rxc2 {[%emt 0:00:04]} Nxc2 {[%emt 0:00:01]} 49. Kd3 {[%emt 0:00:10]} Ne1+ {[%emt 0:01:15]} 50. Ke2 {[%emt 0:00:12]} Nxg2 {[%emt 0:00:15]} 51. Kf2 {[%emt 0:00:04]} Ke5 0-1

[Event "LTU-ch Men 2019"]
[Site "Vilnius"]
[Date "2019.03.19"]
[Round "7.10"]
[White "Steponavicius, Stasys"]
[Black "Indriunas, Matas"]
[Result "0-1"]
[ECO "E73"]
[WhiteElo "2194"]
[BlackElo "1908"]
[Annotator "NA"]
[PlyCount "72"]
[EventDate "2019.??.??"]
[EventCountry "LTU"]
[SourceTitle "playchess.com"]
[Source "ChessBase"]
[SourceQuality "1"]
[TimeControl "5400+30"]

1. d4 {[%emt 0:00:00]} Nf6 {[%emt 0:00:00]} 2. c4 {[%emt 0:00:00]} g6 {[%emt 0:00:00]} 3. Nc3 {[%emt 0:00:00]} Bg7 {[%emt 0:00:00]} 4. e4 {[%emt 0:00:00]} d6 {[%emt 0:00:00]} 5. Be2 {[%emt 0:00:37]} O-O {[%emt 0:00:07]} 6. Bg5 {[%emt 0:00:51]} h6 {[%emt 0:00:25]} 7. Be3 {[%emt 0:00:06]} e5 {[%emt 0:00:08]} 8. d5 {[%emt 0:00:19]} Nbd7 {[%emt 0:00:10]} 9. g4 {[%emt 0:03:39]} Nc5 {[%emt 0:06:31]} 10. f3 {[%emt 0:00:26]} a5 {[%emt 0:05:22]} 11. h4 {[%emt 0:00:23]} h5 {[%emt 0:03:29]} 12. Bg5 {[%emt 0:08:47]} hxg4 {[%emt 0:09:10]} 13. fxg4 {[%emt 0:03:57]} Qd7 {[%emt 0:03:43]} 14. Bxf6 {[%emt 0:02:01]} Bxf6 {[%emt 0:00:23]} 15. Qd2 {[%emt 0:00:41]} Qd8 {[%emt 0:16:17]} 16. g5 {[%emt 0:01:12]} Be7 {[%emt 0:00:42]} 17. O-O-O {[%emt 0:00:58]} Kg7 {[%emt 0:00:49]} 18. Nf3 {[%emt 0:05:14]} Rh8 {[%emt 0:03:02]} 19. Rdg1 {[%emt 0:00:28]} c6 {[%emt 0:09:48]} 20. Qe3 {[%emt 0:10:54]} a4 {[%emt 0:05:55]} 21. Nd2 {[%emt 0:01:59]} Bd7 {[%emt 0:01:29]} 22. Qf3 {[%emt 0:04:44]} Qa5 {[%emt 0:01:58]} 23. Rf1 {[%emt 0:03:06]} Raf8 {[%emt 0:00:31]} 24. Qg3 {[%emt 0:09:14]} Rh7 {[%emt 0:06:54]} 25. Rf3 {[%emt 0:03:49]} a3 {[%emt 0:08:45]} 26. b3 {[%emt 0:01:03]} Rfh8 {[%emt 0:00:12]} 27. Rff1 {[%emt 0:08:48]} Bxg5 {[%emt 0:00:50]} 28. Qxg5 {[%emt 0:13:14]} Qxc3+ {[%emt 0:00:17]} 29. Kd1 {[%emt 0:00:04]} Qa1+ {[%emt 0:01:58]} 30. Kc2 {[%emt 0:00:16]} Qxa2+ {[%emt 0:01:33]} 31. Kd1 {[%emt 0:00:37]} Qa1+ {[%emt 0:00:33]} 32. Kc2 {[%emt 0:00:56]} Qb2+ {[%emt 0:00:27]} 33. Kd1 {[%emt 0:00:04]} a2 {[%emt 0:03:24]} 34. Qf6+ {[%emt 0:03:23]} Kf8 {[%emt 0:00:11]} 35. Qd8+ {[%emt 0:04:38]} Be8 {[%emt 0:00:05]} 36. Qxd6+ {[%emt 0:00:07]} Kg8 {[%emt 0:00:06]} 0-1

[Event "LTU-ch Men 2019"]
[Site "Vilnius"]
[Date "2019.03.19"]
[Round "7.11"]
[White "Juksta, Karolis"]
[Black "Paulauskas, Andrius"]
[Result "1-0"]
[ECO "A40"]
[WhiteElo "2281"]
[BlackElo "1867"]
[Annotator "NA"]
[PlyCount "83"]
[EventDate "2019.??.??"]
[EventCountry "LTU"]
[SourceTitle "playchess.com"]
[Source "ChessBase"]
[SourceQuality "1"]
[TimeControl "5400+30"]

1. d4 {[%emt 0:00:00]} b6 {[%emt 0:02:27]} 2. e4 {[%emt 0:00:08]} Bb7 {[%emt 0:00:08]} 3. Bd3 {[%emt 0:00:58]} e6 {[%emt 0:00:17]} 4. c4 {[%emt 0:10:38]} d5 {[%emt 0:01:23]} (4... Nc6 5. Nf3 Nb4 6. O-O Nxd3 7. Qxd3 d6 8. Nc3 Nf6 9. d5 Ba6 10. Qc2 Bb7 11. Qa4+ Qd7 12. Nb5 c6 13. dxc6 Bxc6 {0-1 (52) Holt,C (2548)-Nakamura,H (2749) chess.com INT 2019}) 5. cxd5 {[%emt 0:06:26]} exd5 {[%emt 0:00:22]} 6. e5 {[%emt 0:00:23] A40: Unusual replies to 1 d4} c5 {[%emt 0:00:33]} 7. f4 {[%emt 0:06:42]} Nc6 {[%emt 0:00:59]} 8. Nf3 {[%emt 0:00:26]} Qc7 $146 {[%emt 0:01:11]} ({Predecessor:} 8... cxd4 9. O-O Be7 10. f5 f6 11. Qe2 fxe5 12. Nxe5 Nxe5 13. Qxe5 {0-1 (34) Mortensen,R (1941)-Nielsen,R (2340) Runavik 2017}) 9. O-O {[%emt 0:04:15]} c4 {[%emt 0:02:22]} 10. Bc2 {[%emt 0:01:08]} O-O-O {[%emt 0:00:08]} 11. Nc3 {[%emt 0:02:06]} a6 {[%emt 0:00:14]} 12. Kh1 {[%emt 0:03:32]} f6 {[%emt 0:07:36]} 13. Ne2 {[%emt 0:03:29]} Kb8 {[%emt 0:02:18]} 14. Be3 {[%emt 0:06:00]} Ka7 {[%emt 0:01:54]} 15. a3 {[%emt 0:07:36]} g6 {[%emt 0:10:39]} 16. Qd2 {[%emt 0:05:52]} h5 {[%emt 0:03:19]} 17. Nh4 {[%emt 0:09:25]} Nce7 {[%emt 0:06:14]} 18. Bxg6 {[%emt 0:02:34]} Bc8 {[%emt 0:01:41]} 19. Bc2 {[%emt 0:00:38]} Bg7 {[%emt 0:04:30]} 20. Ng3 {[%emt 0:03:22]} Nh6 {[%emt 0:03:56]} 21. Rae1 {[%emt 0:01:39]} Rdg8 {[%emt 0:02:52]} 22. Bg1 {[%emt 0:00:39]} Ng4 {[%emt 0:03:56]} 23. Ngf5 {[%emt 0:01:46]} Nxf5 {[%emt 0:02:28]} 24. Bxf5 {[%emt 0:00:56]} Bxf5 {[%emt 0:03:37]} 25. Nxf5 {[%emt 0:00:02]} Nh6 {[%emt 0:03:02]} 26. Ne3 {[%emt 0:03:37]} Rd8 {[%emt 0:00:44]} 27. Rc1 {[%emt 0:00:53]} Qd7 {[%emt 0:01:50]} 28. b3 {[%emt 0:03:16]} b5 {[%emt 0:00:16]} 29. a4 {[%emt 0:00:45]} cxb3 {[%emt 0:02:29]} 30. axb5 {[%emt 0:01:37]} Qxb5 {[%emt 0:04:50]} 31. Rc7+ {[%emt 0:00:44]} Ka8 {[%emt 0:00:07]} 32. Rc5 {[%emt 0:06:06]} Qb7 {[%emt 0:00:46]} 33. Ra1 {[%emt 0:01:13]} Rhe8 {[%emt 0:08:12]} 34. Qa5 {[%emt 0:03:18]} b2 {[%emt 0:00:37]} 35. Rb1 {[%emt 0:00:04]} Bf8 {[%emt 0:01:00]} 36. Rc2 {[%emt 0:01:22]} Bb4 {[%emt 0:01:18]} 37. Qa4 {[%emt 0:00:21]} Qb5 {[%emt 0:07:12]} 38. Qxb5 {[%emt 0:00:16]} axb5 {[%emt 0:00:05]} 39. Rcxb2 {[%emt 0:01:04]} Bc3 {[%emt 0:00:36]} 40. Rxb5 {[%emt 0:00:08]} Rb8 {[%emt 0:00:31]} 41. Nxd5 $18 {[%emt 0:00:13] Double Attack} Rxb5 {[%emt 0:00:11]} 42. Rxb5 {[%emt 0:00:08]} 1-0

[Event "LTU-ch Men 2019"]
[Site "Vilnius"]
[Date "2019.03.19"]
[Round "7.12"]
[White "Narmontas, Raimondas"]
[Black "Pluta, Paulius"]
[Result "0-1"]
[ECO "A40"]
[WhiteElo "2019"]
[BlackElo "1846"]
[Annotator "NA"]
[PlyCount "66"]
[EventDate "2019.??.??"]
[EventCountry "LTU"]
[SourceTitle "playchess.com"]
[Source "ChessBase"]
[SourceQuality "1"]
[TimeControl "5400+30"]

1. d4 {[%emt 0:00:00]} e6 {[%emt 0:00:00]} 2. Nc3 {[%emt 0:00:00]} Nf6 {[%emt 0:01:10]} 3. Bg5 {[%emt 0:00:52]} d5 {[%emt 0:01:07]} 4. Nf3 {[%emt 0:00:40]} Be7 {[%emt 0:00:12]} 5. e3 {[%emt 0:01:12]} O-O {[%emt 0:01:13]} 6. Ne5 {[%emt 0:02:09]} Ne4 {[%emt 0:08:53]} 7. Bxe7 {[%emt 0:07:22]} Qxe7 {[%emt 0:00:09]} 8. Bd3 {[%emt 0:00:15]} Nxc3 {[%emt 0:02:47]} 9. bxc3 {[%emt 0:00:56]} c5 {[%emt 0:00:04]} 10. Qh5 {[%emt 0:00:23]} h6 {[%emt 0:01:48]} 11. h4 {[%emt 0:07:32]} c4 {[%emt 0:00:10]} 12. Be2 {[%emt 0:00:45]} Nd7 {[%emt 0:00:51]} 13. Nxd7 {[%emt 0:07:08]} Bxd7 {[%emt 0:00:07]} 14. Rh3 {[%emt 0:01:02]} Qa3 {[%emt 0:01:53]} 15. Kd2 {[%emt 0:00:47]} b5 {[%emt 0:05:40]} 16. g4 {[%emt 0:01:38]} b4 {[%emt 0:03:05]} 17. e4 {[%emt 0:00:05]} b3 {[%emt 0:02:03]} 18. g5 {[%emt 0:04:52]} Qb2 {[%emt 0:00:27]} 19. Rc1 {[%emt 0:00:17]} bxa2 {[%emt 0:00:42]} 20. gxh6 {[%emt 0:00:29]} Qxc1+ {[%emt 0:00:21]} 21. Kxc1 {[%emt 0:00:01]} a1=Q+ {[%emt 0:00:10]} 22. Kd2 {[%emt 0:00:01]} g6 {[%emt 0:00:12]} 23. Rg3 {[%emt 0:00:02]} Kh7 {[%emt 0:01:20]} 24. Qe5 {[%emt 0:01:11]} Rg8 {[%emt 0:03:51]} 25. Qf6 {[%emt 0:14:01]} Raf8 {[%emt 0:02:21]} 26. Qe7 {[%emt 0:02:50]} Be8 {[%emt 0:13:52]} 27. h5 {[%emt 0:00:50]} gxh5 {[%emt 0:00:28]} 28. Rg7+ {[%emt 0:08:32]} Rxg7 {[%emt 0:00:16]} 29. hxg7 {[%emt 0:00:05]} Rg8 {[%emt 0:00:57]} 30. exd5 {[%emt 0:00:06]} exd5 {[%emt 0:01:32]} 31. Qg5 {[%emt 0:07:48]} Qh1 {[%emt 0:02:14]} 32. Bxh5 {[%emt 0:00:26]} Rxg7 {[%emt 0:00:12]} 33. Qf5+ {[%emt 0:00:08]} Kg8 {[%emt 0:00:44]} 0-1

[Event "LTU-ch Men 2019"]
[Site "Vilnius"]
[Date "2019.03.19"]
[Round "7.13"]
[White "Butvilas, Aistis"]
[Black "Macionis, Zigmas"]
[Result "1-0"]
[ECO "E16"]
[WhiteElo "1983"]
[BlackElo "1784"]
[Annotator "NA"]
[PlyCount "101"]
[EventDate "2019.??.??"]
[EventCountry "LTU"]
[SourceTitle "playchess.com"]
[Source "ChessBase"]
[SourceQuality "1"]
[TimeControl "5400+30"]

1. d4 {[%emt 0:00:00]} Nf6 {[%emt 0:00:00]} 2. c4 {[%emt 0:00:00]} e6 {[%emt 0:00:00]} 3. Nf3 {[%emt 0:00:00]} b6 {[%emt 0:00:25]} 4. g3 {[%emt 0:00:23]} Bb7 {[%emt 0:00:20]} 5. Bg2 {[%emt 0:00:10]} Bb4+ {[%emt 0:00:11]} 6. Bd2 {[%emt 0:05:28]} Be7 {[%emt 0:00:10]} 7. Nc3 {[%emt 0:00:43]} O-O {[%emt 0:00:15]} 8. O-O {[%emt 0:00:38]} d5 {[%emt 0:02:56]} 9. cxd5 {[%emt 0:04:23]} exd5 {[%emt 0:00:11]} 10. Rc1 {[%emt 0:03:37]} c6 {[%emt 0:00:26]} 11. a3 {[%emt 0:04:22]} Nbd7 {[%emt 0:00:53]} 12. Bf4 {[%emt 0:03:57]} Re8 {[%emt 0:01:32]} 13. b4 {[%emt 0:07:16]} a5 {[%emt 0:05:26]} 14. Qb3 {[%emt 0:02:44]} axb4 {[%emt 0:05:59]} 15. axb4 {[%emt 0:00:37]} Bf8 {[%emt 0:02:04]} 16. Rfe1 {[%emt 0:03:57]} Qe7 {[%emt 0:00:33]} 17. Rb1 {[%emt 0:01:52]} h6 {[%emt 0:01:08]} 18. Ne5 {[%emt 0:17:17]} b5 {[%emt 0:05:44]} 19. Nd3 {[%emt 0:11:47]} g5 {[%emt 0:10:49]} 20. Bc1 {[%emt 0:12:01]} Ne4 {[%emt 0:01:00]} 21. Nxe4 {[%emt 0:02:29]} dxe4 {[%emt 0:00:20]} 22. Nc5 {[%emt 0:00:04]} Nxc5 {[%emt 0:01:06]} 23. dxc5 {[%emt 0:01:32]} Bc8 {[%emt 0:01:03]} 24. Bb2 {[%emt 0:00:44]} Bg7 {[%emt 0:02:04]} 25. Bxg7 {[%emt 0:00:25]} Kxg7 {[%emt 0:00:10]} 26. Ra1 {[%emt 0:00:37]} Bf5 {[%emt 0:01:53]} 27. Qc3+ {[%emt 0:00:37]} Kg8 {[%emt 0:01:09]} 28. Rxa8 {[%emt 0:11:56]} Rxa8 {[%emt 0:00:14]} 29. Rd1 {[%emt 0:03:06]} Rd8 {[%emt 0:02:58]} 30. Rxd8+ {[%emt 0:01:08]} Qxd8 {[%emt 0:00:11]} 31. f3 {[%emt 0:00:44]} exf3 {[%emt 0:09:39]} 32. Bxf3 {[%emt 0:00:05]} Qd1+ {[%emt 0:02:15]} 33. Kf2 {[%emt 0:00:12]} Qd7 {[%emt 0:01:51]} 34. Qf6 {[%emt 0:00:52]} Be6 {[%emt 0:00:49]} 35. Qxh6 {[%emt 0:01:02]} Qd4+ {[%emt 0:00:21]} 36. Kg2 {[%emt 0:00:10]} g4 {[%emt 0:00:41]} 37. Qg5+ {[%emt 0:00:21]} Kh7 {[%emt 0:00:51]} 38. Bxc6 {[%emt 0:00:29]} Qxb4 {[%emt 0:00:23]} 39. Qe3 {[%emt 0:00:49]} Qc4 {[%emt 0:00:44]} 40. Qe4+ {[%emt 0:00:31]} Qxe4+ {[%emt 0:01:46]} 41. Bxe4+ {[%emt 0:00:05]} Kg7 {[%emt 0:00:14]} 42. Kf2 {[%emt 0:00:30]} Kf6 {[%emt 0:00:17]} 43. Ke3 {[%emt 0:01:06]} Ke5 {[%emt 0:00:20]} 44. c6 {[%emt 0:00:29]} f5 {[%emt 0:00:41]} 45. Bg2 {[%emt 0:00:32]} b4 {[%emt 0:00:28]} 46. Kd3 {[%emt 0:00:30]} f4 {[%emt 0:01:32]} 47. gxf4+ {[%emt 0:00:02]} Kxf4 {[%emt 0:00:13]} 48. c7 {[%emt 0:00:24]} b3 {[%emt 0:00:55]} 49. e3+ {[%emt 0:00:22]} Ke5 {[%emt 0:00:14]} 50. Bb7 {[%emt 0:00:48]} b2 {[%emt 0:00:39]} 51. Kc2 {[%emt 0:00:07] Kd5} 1-0

[Event "LTU-ch Men 2019"]
[Site "Vilnius"]
[Date "2019.03.19"]
[Round "7.14"]
[White "Slusnys, Evaldas"]
[Black "Bagvilas, Lukas"]
[Result "0-1"]
[ECO "B40"]
[WhiteElo "1849"]
[BlackElo "1973"]
[Annotator "NA"]
[PlyCount "124"]
[EventDate "2019.??.??"]
[EventCountry "LTU"]
[SourceTitle "playchess.com"]
[Source "ChessBase"]
[SourceQuality "1"]
[TimeControl "5400+30"]

1. e4 {[%emt 0:00:00]} c5 {[%emt 0:00:00]} 2. Nf3 {[%emt 0:00:00]} e6 {[%emt 0:00:00]} 3. d3 {[%emt 0:00:11]} Nc6 {[%emt 0:00:00]} 4. g3 {[%emt 0:00:19]} g6 {[%emt 0:00:00]} 5. Bg2 {[%emt 0:00:48]} Bg7 {[%emt 0:00:02]} 6. O-O {[%emt 0:00:36]} Nge7 {[%emt 0:00:03]} 7. c3 {[%emt 0:00:20]} O-O {[%emt 0:00:12]} 8. Be3 {[%emt 0:01:22]} b6 {[%emt 0:00:04]} 9. d4 {[%emt 0:02:39]} d6 {[%emt 0:00:17] A04: Unusual lines after 1 Nf3 and King's Indian Attack} (9... cxd4 10. Nxd4 Ba6 11. Re1 Ne5 12. Na3 d5 13. Bg5 dxe4 14. Bxe4 Qd7 15. f4 Nd3 16. Bxd3 Bxd4+ 17. Kf1 {1-0 (55) Kamsky,G (2746)-Bartel,M (2654) Istanbul 2012}) 10. Qd2 {[%emt 0:01:03]} Re8 {[%emt 0:07:42]} 11. Re1 {[%emt 0:02:16]} Bb7 {[%emt 0:00:27]} 12. Bh6 $146 {[%emt 0:02:45]} ({Predecessor:} 12. Na3 cxd4 13. cxd4 d5 14. e5 a6 15. Bg5 Qd7 16. g4 Kh8 17. Bh6 Ng8 18. Bxg7+ Kxg7 {1-0 (38) Bakhtadze,G (2365)-Cederqvist,N Yerevan 1997}) 12... Bh8 {[%emt 0:00:50]} 13. Bg5 {[%emt 0:03:40]} Qc7 {[%emt 0:02:23]} 14. Na3 {[%emt 0:00:46]} a6 {[%emt 0:00:06]} 15. Rad1 {[%emt 0:03:32]} Rad8 {[%emt 0:01:43]} 16. Nc2 {[%emt 0:02:36]} Na5 {[%emt 0:06:48]} 17. Qf4 {[%emt 0:12:07]} cxd4 {[%emt 0:00:58]} 18. Bf6 {[%emt 0:01:27]} e5 {[%emt 0:04:27]} 19. Qh4 {[%emt 0:00:28]} Bg7 {[%emt 0:02:29]} 20. cxd4 {[%emt 0:11:09]} Qxc2 {[%emt 0:16:43]} 21. Bxe7 {[%emt 0:00:48]} Rd7 {[%emt 0:02:21]} 22. Rd2 {[%emt 0:02:12]} Qc4 {[%emt 0:12:06]} 23. b3 {[%emt 0:06:17]} Qc3 {[%emt 0:07:28]} 24. Bf6 {[%emt 0:06:00]} exd4 {[%emt 0:04:53]} 25. Bxd4 {[%emt 0:13:17]} Bxd4 {[%emt 0:04:11]} 26. Rxd4 {[%emt 0:00:08]} f5 {[%emt 0:05:41]} 27. Red1 {[%emt 0:14:38]} fxe4 {[%emt 0:05:04]} 28. Ng5 {[%emt 0:01:20]} e3 {[%emt 0:03:51]} 29. Bxb7 {[%emt 0:01:46]} exf2+ {[%emt 0:00:06]} 30. Kxf2 {[%emt 0:00:27]} Nxb7 {[%emt 0:00:12]} 31. R4d3 {[%emt 0:02:45]} Qe5 {[%emt 0:00:49]} 32. Qc4+ {[%emt 0:01:05]} Kg7 {[%emt 0:01:20]} 33. Rd5 $17 {[%emt 0:02:50]} Qe3+ {[%emt 0:00:19]} 34. Kg2 {[%emt 0:00:29]} h6 {[%emt 0:01:43]} 35. Nf3 {[%emt 0:01:00]} Qe2+ {[%emt 0:00:24]} 36. Qxe2 {[%emt 0:00:02]} Rxe2+ {[%emt 0:00:02]} 37. Kh3 {[%emt 0:00:53]} Rxa2 {[%emt 0:01:08]} 38. Ne5 {[%emt 0:00:08]} Re7 {[%emt 0:00:16]} 39. Nc4 {[%emt 0:00:15]} Ree2 {[%emt 0:03:41]} 40. Nxd6 {[%emt 0:00:54]} Rxh2+ {[%emt 0:00:06]} 41. Kg4 {[%emt 0:00:05]} Nc5 {[%emt 0:00:32]} 42. b4 {[%emt 0:01:08]} h5+ {[%emt 0:00:06]} 43. Kf4 {[%emt 0:01:38]} Rhf2+ {[%emt 0:01:07]} 44. Ke3 {[%emt 0:01:58]} Rfe2+ {[%emt 0:00:07]} 45. Kf3 {[%emt 0:00:35]} Rf2+ {[%emt 0:00:06]} 46. Ke3 {[%emt 0:00:09]} Rae2+ {[%emt 0:00:06]} 47. Kd4 {[%emt 0:00:06]} Rd2+ {[%emt 0:05:46]} 48. Ke3 {[%emt 0:00:26]} Rfe2+ {[%emt 0:01:36]} 49. Kf3 {[%emt 0:00:19]} Nb3 {[%emt 0:00:23]} 50. Nc4 {[%emt 0:01:44]} Rf2+ {[%emt 0:01:17]} 51. Ke3 {[%emt 0:00:15]} Rde2+ {[%emt 0:00:44]} 52. Kd3 {[%emt 0:00:02]} b5 {[%emt 0:00:09]} 53. Ne5 {[%emt 0:01:56]} Rd2+ {[%emt 0:00:39]} 54. Kc3 {[%emt 0:00:07]} Kf6 {[%emt 0:02:25]} 55. Kxb3 {[%emt 0:00:38]} Rxd1 {[%emt 0:00:45]} 56. Nd7+ {[%emt 0:00:07]} Ke7 {[%emt 0:00:18]} 57. Rxd1 {[%emt 0:00:09]} Rf3+ {[%emt 0:00:10]} 58. Kc2 {[%emt 0:00:20]} Rxg3 {[%emt 0:00:06]} 59. Nc5 {[%emt 0:00:22]} h4 {[%emt 0:00:13]} 60. Rd7+ {[%emt 0:01:01]} Kf8 {[%emt 0:01:41]} 61. Rh7 {[%emt 0:00:57]} h3 {[%emt 0:00:15]} 62. Nxa6 {[%emt 0:00:59]} Kg8 {[%emt 0:00:02]} 0-1